[Event "1000GM Memorial Day NY IM-B 2023"]
[Site "New York"]
[Date "2023.05.30"]
[Round "9.5"]
[White "Luo, Terry"]
[Black "Bortnyk, Mykola"]
[Result "1/2-1/2"]
[ECO "E04"]
[WhiteElo "2321"]
[BlackElo "2425"]
[Annotator "TA"]
[PlyCount "119"]
[EventDate "2023.05.23"]
[EventType "schev"]
[EventCountry "USA"]
[SourceTitle "playchess.com"]
[Source "ChessBase"]
[SourceQuality "1"]
[TimeControl "5400+30"]

{[%evp 9,119,6,33,14,32,29,31,37,33,35,32,29,28,26,44,28,70,81,97,27,34,-5,-7,-113,17,22,15,25,18,22,19,22,34,0,24,-10,0,0,0,0,0,0,0,0,0,0,2,0,0,0,0,0,0,0,25,0,0,0,0,0,0,0,0,0,0,0,0,0,0,0,0,0,0,0,0,0,0,0,0,0,0,0,0,0,0,0,0,0,139,0,0,0,0,0,0,0,0,0,0,0,0,0,0,0,0,0,0,0,0,0,0,0]} 1. d4 {[%emt 0:00:02]} Nf6 {[%emt 0:00:22]} 2. c4 {[%emt 0:00:04]} e6 {[%emt 0:00:08]} 3. g3 {[%emt 0:00:13]} d5 {[%emt 0:01:31]} 4. Nf3 {[%emt 0:00:11]} dxc4 {[%emt 0:00:07]} 5. Bg2 {[%emt 0:00:04]} Bd7 {[%emt 0:00:06]} 6. O-O {[%emt 0:00:09][%mdl 1024] White has compensation. E04: Open Catalan: 5 Nf3.} Bc6 {[%emt 0:00:25]} 7. Qc2 {[%emt 0:00:05]} b5 {[%emt 0:00:11][%cal Bb7b5,Bb5b4,Bb4c3][%mdl 32]} 8. Nc3 {[%emt 0:00:05] Prevents Be4. White is slightly better.} Be7 {[%emt 0:00:25]} 9. e4 {[%emt 0:06:15][%cal Od4d5]} b4 {[%emt 0:00:04] [#]} 10. d5 $1 {[%emt 0:00:56] [#]} bxc3 $146 {[%emt 0:00:10]} (10... exd5 11. Nxd5 Bxd5 12. exd5 $16) ({Predecessor:} 10... Bb7 11. dxe6 bxc3 12. exf7+ Kf8 13. Rd1 Qc8 14. Ng5 h6 15. Bh3 Nbd7 16. Ne6+ Kxf7 17. Qxc3 Bxe4 {0-1 Ju,W (2555)-Bortnyk,M (2442) PRO League Prelim rapid 2023 (3.2)}) 11. dxc6 {[%emt 0:00:09]} Qd3 {[%emt 0:00:02]} 12. Qa4 {[%emt 0:00:16]} Nxe4 {[%emt 0:03:00]} 13. Ne5 $1 {[%emt 0:24:10][%csl LRc4,LRd3]} Qd4 {[%emt 0:00:57]} 14. Nd7 {[%emt 0:07:13]} (14. Nxc4 $16 {Hoping for Bxe4.} Nc5 15. Qb5) 14... f5 $11 {[%emt 0:03:03]} (14... cxb2 15. Bxb2 Qxb2 16. Bxe4 $16) 15. bxc3 {[%emt 0:24:02]} (15. Be3 $5 {[%cal Re3d4]} Qd5 16. Nxb8 Rxb8 17. Rad1 $11) 15... Nxc3 {[%emt 0:01:43]} 16. Be3 {[%emt 0:05:05]} (16. Bb2 $11 Qxf2+ 17. Rxf2 Nxa4 18. Bxg7 Nxd7 19. Bxh8) 16... Nxa4 {[%emt 0:03:37]} (16... Qxe3 $17 17. Qxc4 Qd4 18. Qxe6 Qd6 19. Qxf5 Ne2+ 20. Kh1 Nd4) 17. Bxd4 {[%emt 0:00:02]} Nxd7 {[%emt 0:00:10]} 18. cxd7+ {[%emt 0:00:09][%mdl 64] Discovered Attack} Kxd7 {[%emt 0:00:38]} 19. Bxa8 {[%emt 0:03:55]} Rxa8 {[%emt 0:00:05]} 20. Rac1 $1 {[%emt 0:00:15][%cal Of1d1]} Nb6 {[%emt 0:01:05]} 21. Rfd1 {[%emt 0:00:10]} Kc6 {[%emt 0:01:15]} 22. a4 {[%emt 0:04:01]} a5 {[%emt 0:04:55]} (22... Nxa4 $2 23. Rxc4+ (23. Bxg7 Nb6 $15) 23... Kb5 24. Rxc7 $18) 23. Bxb6 {[%emt 0:00:09][%mdl 64] Remove Defender} cxb6 {[%emt 0:00:02]} 24. Rxc4+ {[%emt 0:00:01][%mdl 4096] Endgame KRR-KRB} Bc5 {[%emt 0:00:01]} 25. Rc2 {[%emt 0:00:56]} e5 {[%emt 0:00:20]} 26. Kf1 {[%emt 0:00:29]} Re8 {[%emt 0:00:08]} 27. Rcd2 {[%emt 0:00:55]} Bd4 {[%emt 0:01:20]} 28. f4 {[%emt 0:01:35]} Bc5 $1 {[%emt 0:00:11]} 29. fxe5 {[%emt 0:02:05]} Rxe5 {[%emt 0:00:04]} 30. Re2 {[%emt 0:00:55]} Re4 {[%emt 0:00:20]} 31. Rxe4 {[%emt 0:03:50]} fxe4 {[%emt 0:00:03] KR-KB} 32. Rb1 {[%emt 0:00:20]} Kd5 {[%emt 0:00:15]} 33. Ke2 {[%emt 0:00:16]} Kc4 {[%emt 0:00:12]} 34. g4 {[%emt 0:01:07]} g5 {[%emt 0:00:54]} 35. h3 {[%emt 0:02:00]} Kc3 {[%emt 0:01:02]} 36. Rb5 {[%emt 0:01:06]} Kc2 {[%emt 0:00:11]} 37. Ke1 {[%emt 0:00:04]} h6 {[%emt 0:01:18]} 38. Ke2 {[%emt 0:00:06]} Kc3 {[%emt 0:03:22]} 39. Rb1 {[%emt 0:00:12]} Kc4 {[%emt 1:16:18]} 40. Rb5 {[%emt 0:01:11]} Kd4 {[%emt 0:00:00]} 41. Rb1 {[%emt 0:00:26]} Kc3 {[%emt 0:00:00]} 42. Rb5 {[%emt 0:00:29]} Kc2 {[%emt 0:00:00]} 43. Ke1 {[%emt 0:00:03]} Kd3 {[%emt 0:00:00]} 44. Rb3+ {[%emt 0:00:25]} Kd4 {[%emt 0:00:00]} 45. Ke2 {[%emt 0:01:20]} Ke5 {[%emt 0:00:00]} 46. Rc3 {[%emt 0:02:00]} Kd5 {[%emt 0:00:00]} 47. Rc2 {[%emt 0:02:01]} Kd4 {[%emt 0:00:00]} 48. Rc1 {[%emt 0:00:07]} e3 {[%emt 0:00:00] [#]} (48... Kd5 $11) 49. Rf1 {[%emt 0:01:19]} ({White must play} 49. Rc2 $1 $16) 49... Kc4 {[%emt 0:00:00] The position is equal.} 50. Rf6 {[%emt 0:00:02]} Kb4 {[%emt 0:00:00]} 51. Rxh6 {[%emt 0:00:02]} Kxa4 {[%emt 0:00:00] ...Kb4 would be deadly.} 52. h4 {[%emt 0:00:03]} (52. Rg6 $2 Kb3 53. Rxg5 a4 54. Rxc5 bxc5 $19) 52... gxh4 {[%emt 0:00:00]} 53. g5 {[%emt 0:00:22]} Kb3 $1 {[%emt 0:00:00]} 54. Rxh4 {[%emt 0:01:26]} (54. g6 $5 Bf8 $8 55. Rxh4 $11) 54... a4 $1 {[%emt 0:00:00] Threatens to win with ...a3.} 55. g6 {[%emt 0:00:07] Intending g7 and mate.} Bf8 {[%emt 0:00:00] And now ...a3 would win.} 56. Rh8 {[%emt 0:00:27]} (56. Kxe3 $2 {perishes.} a3 57. Rh8 (57. Rh1 $2 a2 $19) 57... a2 58. Rxf8 (58. Rh1 $2 Bg7 $19) 58... a1=Q $19) 56... Bg7 {[%emt 0:00:00]} 57. Rb8 {[%emt 0:00:31]} a3 {[%emt 0:00:00]} 58. Rxb6+ {[%emt 0:00:02]} Kc2 {[%emt 0:00:00]} 59. Ra6 {[%emt 0:00:05]} Kb2 {[%emt 0:00:00]} 60. Kxe3 {[%emt 0:00:08] Weighted Error Value: White=0.14 (very precise) /Black=0.12 (very precise)} 1/2-1/2